fUST/lending_fUST_20240620
["ID","MTS","AMOUNT","RATE_DAILY","PERIOD"]
[329905043,1718813451084,-500.0,0.00024931,5]
[329905044,1718813451094,-500.0,0.00024931,5]
[329905045,1718813451103,-500.0,0.00024931,5]
[329905046,1718813451112,-500.0,0.00024931,5]
[329905047,1718813451121,-500.0,0.00024931,5]
[329905048,1718813451130,-500.0,0.00024931,5]
[329905049,1718813451139,-500.0,0.00024931,5]
[329905050,1718813451148,-500.0,0.00024931,5]
[329905051,1718813451157,-500.0,0.00024931,5]
[329905052,1718813451166,-500.0,0.00024931,5]
[329905053,1718813451176,-3402.41,0.00024931,5]
[329905054,1718813451185,-500.0,0.00024931,5]
[329905055,1718813451196,-500.0,0.00024931,5]
[329905056,1718813451205,-500.0,0.00024931,5]
[329905057,1718813451214,-8106.12,0.00024931,5]
[329905058,1718813451223,-500.0,0.00024931,5]
[329905059,1718813451232,-1049.02,0.00024931,5]
[329905060,1718813451242,-767.75,0.00024931,5]
[329905061,1718813451251,-1932.51,0.00024931,5]
[329905062,1718813451260,-500.0,0.00024931,5]
[329905063,1718813451269,-500.0,0.00024931,5]
[329905064,1718813451278,-552.43367497,0.00024931,5]
[329905065,1718813451287,-500.0,0.00024931,5]
[329905066,1718813451297,-500.0,0.00024931,5]
[329905067,1718813451306,-500.0,0.00024931,5]
[329905068,1718813451316,-500.0,0.00024931,5]
[329905069,1718813451325,-500.0,0.00024931,5]
[329905070,1718813451334,-500.0,0.00024931,5]
[329905071,1718813451343,-500.0,0.00024931,5]
[329905072,1718813451352,-2519.71,0.00024931,5]
[329905073,1718813451362,-500.0,0.00024931,5]
[329905074,1718813451372,-500.0,0.00024931,5]
[329905075,1718813451383,-500.0,0.00024931,5]
[329905076,1718813451394,-500.0,0.00024931,5]
[329905077,1718813451403,-9165.42,0.00024931,5]
[329905078,1718813451413,-500.0,0.00024931,5]
[329905079,1718813451422,-500.0,0.00024931,5]
[329905080,1718813451431,-500.0,0.00024931,5]
[329905081,1718813451440,-500.0,0.00024931,5]
[329905082,1718813451452,-500.0,0.00024931,5]
[329905083,1718813451464,-500.0,0.00024931,5]
[329905084,1718813451474,-500.0,0.00024931,5]
[329905085,1718813451483,-2526.05,0.00024931,5]
[329905086,1718813451492,-500.0,0.00024931,5]
[329905087,1718813451502,-655.42,0.00024931,5]
[329905088,1718813451511,-500.0,0.00024931,5]
[329905089,1718813451520,-998.65,0.00024931,5]
[329905090,1718813451530,-500.0,0.00024931,5]
[329905091,1718813451539,-1437.6,0.00024931,5]
[329905092,1718813451549,-500.0,0.00024931,5]
[329905093,1718813451559,-508.49326385,0.00024931,5]
[329905094,1718813451568,-500.0,0.00024931,5]
[329905095,1718813451577,-580.22891344,0.00024931,5]
[329905096,1718813451587,-1098.17,0.00024931,5]
[329905097,1718813451596,-500.0,0.00024931,5]
[329905098,1718813451607,-500.0,0.00024931,5]
[329905099,1718813451616,-500.0,0.00024931,5]
[329905100,1718813451625,-500.0,0.00024931,5]
[329905101,1718813451635,-500.0,0.00024931,5]
[329905102,1718813451644,-500.0,0.00024931,5]
[329905103,1718813451654,-500.0,0.00024931,5]
[329905104,1718813451664,-819.04,0.00024931,5]
[329905105,1718813451673,-500.0,0.00024931,5]
[329905106,1718813451682,-2507.06,0.00024931,5]
[329905107,1718813451695,-3527.13,0.00024931,5]
[329905108,1718813451705,-500.0,0.00024931,5]
[329905109,1718813451714,-2226.93,0.00024931,5]
[329905110,1718813451724,-749.15,0.00024931,5]
[329905111,1718813451734,-500.0,0.00024931,5]
[329905112,1718813451743,-500.0,0.00024931,5]
[329905113,1718813451754,-6738.38,0.00024931,5]
[329905114,1718813451763,-500.0,0.00024931,5]
[329905115,1718813451773,-6589.57,0.00024931,5]
[329905116,1718813451782,-500.0,0.00024931,5]
[329905117,1718813451791,-500.0,0.00024931,5]
[329905118,1718813451802,-500.0,0.00024931,5]
[329905119,1718813451811,-633.26196283,0.00024931,5]
[329905120,1718813451820,-1750.0,0.00024961,2]
[329905121,1718813451830,-1000.0,0.0002497,2]
[329905122,1718813451839,-1000.0,0.00024986,2]
[329905123,1718813451849,-402.10409234,0.00025,2]
[329905124,1718813451858,-16224.46832711,0.00025,2]
[329905125,1718813451867,-1500.0,0.00025066,30]
[329905126,1718813451876,-240.3552,0.00025079,2]
[329905127,1718813451885,-1000.0,0.00025087,2]
[329905128,1718813451894,-205.5312875,0.00025104,2]
[329905129,1718813451904,-1000.0,0.00025133,2]
[329905130,1718813451914,-154.66050861,0.00025145,2]
[329905131,1718813451923,-160.0,0.000252,2]
[329905132,1718813451934,-824.81184347,0.00025202,2]
[329905133,1718813451946,-46.96144901,0.00025203,60]
[329905134,1718813483818,199.33032142,9.999e-05,2]
[329905135,1718813483943,212.74159649,9.999e-05,2]
[329905136,1718813483980,16.63102251,9.999e-05,2]
[329905137,1718813484009,440.50589445,9.999e-05,2]
[329905138,1718813484833,402.33170661,9.999e-05,2]
[329905139,1718813490011,195.33979364,9.999e-05,2]
[329905140,1718813504100,693.38474267,9.999e-05,2]
[329905142,1718813537015,157.91368103,9.999e-05,2]
[329905147,1718813737570,280.0,0.000225,30]
[329905188,1718814417045,273.37336231,9.9e-05,2]
[329905189,1718814426947,273.37336231,9.9e-05,2]
[329905190,1718814434102,-188.82288385,0.00018134,2]
[329905191,1718814434122,-335.50400099,0.00018324,2]
[329905192,1718814434157,-242.06835424,0.00018324,2]
[329905193,1718814435207,273.37336231,9.9e-05,2]
[329905194,1718814435678,5924.32824341,9.9e-05,2]
[329905195,1718814436625,19287.09286411,9.9e-05,2]
[329905196,1718814444121,273.37336231,9.9e-05,2]
[329905197,1718814448095,-933.13869274,0.00018324,2]
[329905198,1718814453180,-307.93164576,0.00018324,2]
[329905199,1718814458557,4127.19454385,9.9e-05,2]
[329905200,1718814466067,273.37336231,9.9e-05,2]
[329905201,1718814474072,273.37336231,9.9e-05,2]
[329905202,1718814482307,273.37336231,9.9e-05,2]
[329905203,1718814490357,273.37336231,9.9e-05,2]
[329905204,1718814499354,273.37336231,9.9e-05,2]
[329905241,1718814632875,-335.0,0.00018324,2]
[329905246,1718814632927,-846.35730627,0.00018324,2]
[329905248,1718814632937,-346.49534435,0.00018458,3]
[329905249,1718814632947,-219.51347,0.00018558,2]
[329905251,1718814632956,-150.0,0.000189,2]
[329905252,1718814632966,-539.59557086,0.00019,2]
[329905253,1718814632976,-300.0,0.00019996,2]
[329905255,1718814632986,-300.0,0.00019996,2]
[329905256,1718814632996,-607.19060049,0.00019997,2]
[329905257,1718814633006,-309.62844586,0.00019997,2]
[329905258,1718814633016,-436.9899517,0.00019997,2]
[329905259,1718814633033,-5541.7047867,0.00019997,2]
[329905260,1718814633044,-1463.45636231,0.00019997,2]
[329905261,1718814633056,-5015.42125725,0.00019997,2]
[329905293,1718814638299,-2101.53972863,0.00019997,2]
[329905295,1718814638311,-16455.85915623,0.00019997,2]
[329905296,1718814638321,-20000.0,0.00019998,2]
[329905298,1718814638332,-292.75840094,0.0002,2]
[329905300,1718814638342,-1116.46285403,0.0002,2]
[329905302,1718814638352,-4166.45242892,0.0002,2]
[329905304,1718814638362,-482.39629157,0.0002,2]
[329905305,1718814638372,-672.653742,0.00021096,2]
[329905306,1718814638382,-420.0,0.00021774,2]
[329905308,1718814638392,-180.689673,0.00021918,2]
[329905310,1718814638402,-420.0,0.00021996,2]
[329905312,1718814638412,-180.689673,0.00022773,2]
[329905314,1718814638422,-263.47969156,0.000228,2]
[329905327,1718814638544,-499.14936997,0.000228,2]
[329905329,1718814638554,-154.81422293,0.00023,2]
[329905331,1718814638563,-5.43515999,0.00023627,2]
[329905333,1718814638575,-175.25451301,0.00023627,2]
[329905335,1718814638585,-420.0,0.00023709,2]
[329905337,1718814638597,-587.0,0.00024195,2]
[329905339,1718814638606,-190.35462398,0.00024204,2]
[329905341,1718814638617,-501.3078284,0.00024204,2]
[329905343,1718814638627,-500.0,0.00024205,120]
[329905345,1718814638637,-293.17,0.00024205,120]
[329905347,1718814638647,-152.34,0.0002429,3]
[329905349,1718814638656,-457.02,0.0002429,3]
[329905351,1718814638666,-1817.40561473,0.000243,2]
[329905354,1718814638678,-2044.18764377,0.000243,2]
[329905356,1718814638689,-29659.03269815,0.000243,2]
[329905358,1718814638701,-1861.2105778,0.000243,2]
[329905397,1718814640642,-1671.0296205,0.000243,2]
[329905398,1718814640694,-3167.34922923,0.000243,2]
[329905399,1718814640707,-2968.30070057,0.000243,2]
[329905445,1718814643651,-795.13782798,0.000243,2]
[329905477,1718814646509,-384.9056176,0.000199,2]
[329905478,1718814646519,-285.0943824,0.000243,2]
[329905479,1718814646672,-5980.85597537,0.000243,2]
[329905480,1718814646682,-285.32338236,0.00024434,2]
[329905481,1718814646692,-1000.0,0.00024437,2]
[329905482,1718814646702,-180.689673,0.00024482,2]
[329905483,1718814646711,-1000.0,0.00024497,2]
[329905484,1718814646720,-1000.0,0.00024498,2]
[329905485,1718814646730,-2000.0,0.00024557,2]
[329905486,1718814646740,-193.18701467,0.00024575,2]
[329905487,1718814646749,-161.71367277,0.00024635,2]
[329905488,1718814646759,-386.94661155,0.00024651,2]
[329905489,1718814646773,-202.9328766,0.00024651,2]
[329905491,1718814646783,-278.96660143,0.00024651,2]
[329905493,1718814646793,-459.21785377,0.00024651,2]
[329905495,1718814646804,-384.71425523,0.00024651,2]
[329905496,1718814646815,-413.28592894,0.00024651,2]
[329905497,1718814646825,-186.25825393,0.00024651,2]
[329905498,1718814646835,-193.09026842,0.00024651,2]
[329905499,1718814646844,-154.9690062,0.00024651,2]
[329905500,1718814646856,-691.40937148,0.00024651,2]
[329905501,1718814646865,-178.95455802,0.00024652,2]
[329905502,1718814646874,-264.29313397,0.00024652,2]
[329905503,1718814646884,-236.55773478,0.00024652,2]
[329905504,1718814646894,-201.13309949,0.00024653,2]
[329905505,1718814646904,-25365.50072802,0.00024653,2]
[329905506,1718814653671,253.2236699,9.9e-05,2]
[329905507,1718814653695,20.14969241,9.9e-05,2]
[329905508,1718814670572,229.85030759,9.9e-05,2]
[329905509,1718814670596,43.52305472,9.9e-05,2]
[329905510,1718814678716,273.37336231,9.9e-05,2]
[329905511,1718814687694,273.37336231,9.9e-05,2]
[329905512,1718814696027,273.37336231,9.9e-05,2]
[329905513,1718814704711,273.37336231,9.9e-05,2]
[329905514,1718814713665,273.37336231,9.9e-05,2]
[329905515,1718814726959,273.37336231,9.9e-05,2]
[329905516,1718814735955,273.37336231,9.9e-05,2]
[329905517,1718814739791,154.81422293,9.999e-05,2]
[329905518,1718814745602,273.37336231,9.9e-05,2]
[329905519,1718814754662,273.37336231,9.9e-05,2]
[329905520,1718814763249,273.37336231,9.9e-05,2]
[329905521,1718814770583,154.81422293,9.999e-05,2]
[329905523,1718815054528,304.68,0.00010959,2]
[329905527,1718815308849,693.38474267,9.999e-05,2]
[329905546,1718815627160,-218.7235122,0.0001591,2]
[329905547,1718815634090,-31.2764878,0.0001591,2]
[329905548,1718815634118,-568.18658362,0.000167,2]
[329905549,1718815634146,-2503.77016356,0.000167,2]
[329905552,1718815756760,-159.0,0.00016694,2]
[329905553,1718815756792,-252.3023543,0.00016695,2]
[329905554,1718815756832,-411.3023543,0.00016695,2]
[329905623,1718815832667,-319.88162,0.00015723,2]
[329905625,1718815832676,-453.4111541,0.00016598,2]
[329905627,1718815832685,-300.0,0.00016692,2]
[329905629,1718815832694,-13939.4168399,0.00016693,2]
[329905632,1718815832707,-604.99998376,0.00016693,2]
[329905634,1718815832719,-6681.69307096,0.00016693,2]
[329905698,1718815838673,-9788.8613482,0.00016693,2]
[329905699,1718815838683,-23131.65694955,0.00016694,2]
[329905700,1718815838694,-2425.30876622,0.00016694,2]
[329905701,1718815838706,-16593.57927289,0.00016694,2]
[329905702,1718815838715,-8449.87049957,0.00016697,2]
[329905703,1718815838724,-3000.0,0.00016807,2]
[329905704,1718815838734,-3652.93350617,0.00017684,2]
[329905705,1718815838743,-1443.37252304,0.00017784,2]
[329905706,1718815838753,-693.02508487,0.00017784,2]
[329905707,1718815838762,-154.98450155,0.00017784,2]
[329905708,1718815838771,-457.02362336,0.00017879,2]
[329905709,1718815838780,-11110.56607981,0.00017984,2]
[329905710,1718815838789,-59649.17445673,0.00017988,2]
[329905711,1718815838798,-177.32787339,0.000182,2]
[329905712,1718815838807,-177.32787339,0.000182,2]
[329905713,1718815838816,-154.98450155,0.00018485,2]
[329905714,1718815838827,-1710.36583112,0.000189,2]
[329905715,1718815838836,-394.46983138,0.00018995,2]
[329905716,1718815838845,-163.25367823,0.00018995,2]
[329905717,1718815838854,-539.59557086,0.00019,2]
[329905718,1718815838977,-163.25901194,0.00019,2]
[329905719,1718815838987,-214.84621217,0.00019178,2]
[329905720,1718815838996,-500.0,0.00019178,2]
[329905721,1718815839006,-356.88590721,0.00019178,2]
[329905722,1718815839015,-167.293101,0.00019178,2]
[329905723,1718815839025,-3652.93350615,0.00019402,2]
[329905724,1718815839034,-20958.69467811,0.0002,2]
[329905725,1718815839044,-154.81422293,0.0002,2]
[329905726,1718815839055,-4166.45242892,0.0002,2]
[329905727,1718815839066,-482.39629157,0.0002,2]
[329905728,1718815839076,-1116.46285403,0.0002,2]
[329905729,1718815839086,-292.75840094,0.0002,2]
[329905730,1718815839097,-26975.34778388,0.0002,2]
[329905731,1718815839111,-348.0,0.0002,2]
[329905758,1718815840894,-20266.36770784,0.0002,2]
[329905759,1718815840996,-5238.40251938,0.0002,2]
[329905760,1718815841006,-6388.76468437,0.0002,2]
[329905761,1718815841015,-4263.46120307,0.0002,2]
[329905762,1718815841024,-9999.32221691,0.0002,2]
[329905764,1718815841036,-146.29720639,0.0002,2]
[329905766,1718815841045,-153.53996267,0.0002,2]
[329905767,1718815841054,-225.27800044,0.0002,2]
[329905768,1718815841065,-178.45257764,0.0002,2]
[329905769,1718815841074,-3652.93350615,0.00021119,2]
[329905770,1718815841084,-150.0,0.000215,2]
[329905771,1718815841093,-166.666666,0.00021918,2]
[329905772,1718815841102,-1225.64954024,0.00022,2]
[329905773,1718815841112,-9683.89300914,0.00022,2]
[329905774,1718815841122,-3652.93350615,0.00022837,2]
[329905775,1718815841132,-154.81422293,0.00023,2]
[329905776,1718815841141,-11330.13462073,0.00023,2]
[329905777,1718815841152,-154.98450155,0.0002308,2]
[329905778,1718815841162,-319.88162,0.00023585,2]
[329905779,1718815841173,-1710.36583112,0.000239,2]
[329905780,1718815841185,-155.17802901,0.00024295,2]
[329905781,1718815841194,-435.0,0.00024295,2]
[329905782,1718815841204,-154.98450155,0.00024295,2]
[329905783,1718815841215,-495.90088014,0.00024296,2]
[329905784,1718815841224,-12397.99945724,0.00024296,2]
[329905818,1718815844055,-0.0041367,0.00024296,2]
[329905841,1718815877840,155.08990453,0.00015,2]
[329905842,1718815895019,80.62039141,9.999e-05,2]
[329905843,1718815895050,447.00533752,9.999e-05,2]
[329905844,1718815913099,509.45109603,9.999e-05,2]
[329905847,1718815957988,218.51,0.00010959,2]
[329905848,1718815969059,182.1,0.00010959,2]
[329905849,1718815979862,151.75,0.00010959,2]
[329905850,1718815990594,758.75,0.00010959,2]
[329905851,1718815994582,1344.77977068,9.999e-05,2]
[329905861,1718816305401,154.81422293,9.999e-05,2]
[329905864,1718816442998,1443.71484429,9.999e-05,2]
[329905865,1718816456397,24900.0,0.0001306,2]
[329905866,1718816486359,616.084928,0.00013699,2]
[329905868,1718816689288,3422.66036901,0.00013953,2]
[329905869,1718816750221,3366.80354155,0.00013943,2]
[329905870,1718816758561,1500.0,0.00022465,30]
[329905871,1718816828142,-268.58867592,0.00014037,2]
[329905872,1718816837094,-31.41132408,0.00014037,2]
[329905873,1718816837117,-274.63382341,0.00014038,2]
[329905874,1718816840132,-699.20177315,0.00014038,2]
[329905875,1718816846127,525.00342598,9.999e-05,2]
[329905879,1718816933205,-427.75437078,0.00014034,2]
[329905880,1718816933239,-97.2490552,0.00014034,2]
[329905881,1718816933269,-330.50531558,0.00014035,2]
[329905882,1718816933308,-427.75437078,0.00014035,2]
[329905883,1718816933343,-427.75437078,0.00014035,2]
[329905884,1718816933504,-427.75437078,0.00014035,2]
[329905885,1718816933584,-427.75437078,0.00014035,2]
[329905886,1718816933645,-427.75437078,0.00014035,2]
[329905887,1718816949650,-24880.0,0.00014034,2]
[329905888,1718816956135,-34769.17445673,0.00014034,2]
[329905889,1718816956155,-42150.54498866,0.00014034,2]
[329905890,1718816956175,-525.00342598,0.00014034,2]
[329905891,1718816956195,-1442.42349399,0.00014053,2]
[329905892,1718816956218,-242.62254666,0.00014058,2]
[329905893,1718816956240,-155.18577707,0.0001406,2]
[329905894,1718816956263,-3000.0,0.00014227,2]
[329905895,1718816956286,-1136.90363854,0.00014995,2]
[329905896,1718816956305,-1102.12443366,0.00015,2]
[329905897,1718816956326,-1693.58663649,0.00015,2]
[329905898,1718816956349,-154.81422293,0.00015,2]
[329905899,1718816956368,-154.81422293,0.00015,2]
[329905900,1718816958183,216.19835976,0.00014033,2]
[329905901,1718816963312,-10476.36000221,0.00014033,2]
[329905902,1718816966170,-418.00771784,0.00014033,2]
[329905903,1718816966734,525.00342598,0.00014032,2]
[329905904,1718816975286,37.61657402,0.00014032,2]
[329905905,1718816975313,102.51992009,0.00014032,2]
[329905906,1718816975335,229.372619,0.00014032,2]
[329905907,1718816983136,-487.63998269,0.00014032,2]
[329905908,1718816983326,-487.63998269,0.00014032,2]
[329905909,1718817008176,-507.14558199,0.00014031,2]
[329905910,1718817009643,-17.85784399,0.00014031,2]
[329905911,1718817009682,-489.287738,0.00014032,2]
[329905912,1718817009884,-220.69880312,0.00014032,2]
[329905953,1718817031976,-525.00342598,0.0001403,2]
[329905955,1718817031986,-199.33032142,0.00014031,2]
[329905957,1718817031996,-40095.76936905,0.00014032,2]
[329905959,1718817032005,-308.042464,0.00014056,2]
[329905961,1718817032015,-1100.9385602,0.00015,2]
[329905963,1718817032025,-5189.41063595,0.00015503,2]
[329905965,1718817032037,-964.97202475,0.00015503,2]
[329905967,1718817032046,-508.96497987,0.0001569,2]
[329905969,1718817032055,-1581.33492777,0.00016589,2]
[329905971,1718817032065,-2945.95309883,0.0001659,2]
[329905973,1718817032074,-1079.03886944,0.00016604,2]
[329905976,1718817032087,-2343.62149954,0.00016604,2]
[329905978,1718817032096,-619.49546002,0.00016673,2]
[329905980,1718817032105,-1513.95647646,0.00016688,2]
[329905982,1718817032115,-155.04340097,0.00016689,2]
[329905984,1718817032124,-58767.6286725,0.00016689,2]
[329905986,1718817032133,-1984.62608834,0.0001669,2]
[329905988,1718817032142,-35478.57810534,0.0001669,2]
[329905989,1718817032152,-2413.03400432,0.0001669,2]
[329905992,1718817032162,-2819.17925605,0.0001669,2]
[329905994,1718817032172,-155.01549845,0.0001669,2]
[329905996,1718817032181,-159.13163847,0.0001669,2]
[329905997,1718817032193,-489.52678547,0.0001669,2]
[329906000,1718817032202,-692.52433816,0.0001669,2]
[329906001,1718817032210,-1502.1054915,0.00016691,2]
[329906003,1718817032219,-456.80725446,0.00016691,2]
[329906005,1718817032228,-15237.96355656,0.00016692,2]
[329906007,1718817032238,-184.89833926,0.00016695,2]
[329906009,1718817032248,-967.79044907,0.00018,2]
[329906011,1718817032257,-570.12323862,0.000189,2]
[329906013,1718817032266,-184.74663935,0.00019,2]
[329906016,1718817032276,-539.59557086,0.00019,2]
[329906018,1718817032286,-167.293101,0.00019178,2]
[329906019,1718817032295,-3422.66036898,0.00019255,2]
[329906022,1718817032304,-192.43176914,0.0002,2]
[329906023,1718817032314,-1116.46285403,0.0002,2]
[329906026,1718817032323,-292.75840094,0.0002,2]
[329906027,1718817032332,-4166.45242892,0.0002,2]
[329906029,1718817032341,-482.39629157,0.0002,2]
[329906031,1718817032350,-154.98450155,0.0002,2]
[329906033,1718817032359,-154.98450155,0.0002,2]
[329906035,1718817032369,-435.0,0.0002,2]
[329906037,1718817032378,-154.81422293,0.00020652,2]
[329906039,1718817032388,-150.78889555,0.00020845,4]
[329906041,1718817032397,-534.57135192,0.00021,2]
[329906043,1718817032406,-308.042464,0.00021084,2]
[329906045,1718817032415,-675.677085,0.00021096,2]
[329906047,1718817032424,-150.78889555,0.0002127,2]
[329906048,1718817032434,-3000.0,0.000215,2]
[329906049,1718817032445,-3000.0,0.0002151,2]
[329906050,1718817032454,-3000.0,0.0002152,2]
[329906051,1718817032464,-3000.0,0.0002153,2]
[329906052,1718817032473,-3000.0,0.0002154,2]
[329906054,1718817032484,-3000.0,0.0002155,2]
[329906056,1718817032493,-3000.0,0.0002156,2]
[329906058,1718817032507,-3000.0,0.0002157,2]
[329906060,1718817032516,-3000.0,0.0002158,2]
[329906062,1718817032525,-3000.0,0.0002159,2]
[329906064,1718817032535,-3000.0,0.000216,2]
[329906066,1718817032544,-3000.0,0.0002161,2]
[329906068,1718817032554,-3000.0,0.0002162,2]
[329906070,1718817032564,-3000.0,0.0002163,2]
[329906072,1718817032578,-3000.0,0.0002164,2]
[329906074,1718817032587,-3000.0,0.0002165,2]
[329906076,1718817032596,-3000.0,0.0002166,2]
[329906078,1718817032607,-3000.0,0.0002167,2]
[329906080,1718817032616,-3000.0,0.0002168,2]
[329906082,1718817032625,-3000.0,0.0002169,2]
[329906083,1718817032634,-3452.926874,0.000217,2]
[329906086,1718817032645,-151.0,0.000217,2]
[329906087,1718817032655,-151.0,0.000217,2]
[329906089,1718817032665,-151.0,0.000217,2]
[329906091,1718817032675,-151.0,0.000217,2]
[329906093,1718817032684,-3422.66036898,0.00021906,2]
[329906094,1718817032696,-166.666666,0.00021918,2]
[329906096,1718817032706,-271.84324959,0.0002242,2]
[329906097,1718817032715,-1500.0,0.00022602,30]
[329906098,1718817032724,-1500.0,0.00022739,30]
[329906099,1718817032733,-1500.0,0.00022876,30]
[329906100,1718817032744,-154.81422293,0.00023,2]
[329906101,1718817032753,-1500.0,0.00023013,30]
[329906102,1718817032763,-1500.0,0.0002315,30]
[329906103,1718817032772,-1500.0,0.00023287,30]
[329906104,1718817032782,-622.61721098,0.00023353,2]
[329906105,1718817032791,-1500.0,0.00023424,30]
[329906106,1718817032800,-1500.0,0.00023561,30]
[329906108,1718817032810,-150.78889555,0.00023633,2]
[329906109,1718817032819,-250.14068304,0.00023633,2]
[329906110,1718817032829,-226.938,0.00023644,2]
[329906112,1718817032838,-1500.0,0.00023698,30]
[329906114,1718817032847,-1000.0,0.000237,2]
[329906116,1718817032857,-1500.0,0.00023835,30]
[329906117,1718817032866,-1233.82,0.00023838,2]
[329906118,1718817032876,-570.12323862,0.000239,2]
[329906119,1718817032885,-1005.52066388,0.0002392,2]
[329906120,1718817032895,-1500.0,0.00023972,30]
[329906121,1718817032904,-285.0,0.00024,2]
[329906122,1718817032913,-301.57779109,0.00024031,4]
[329906123,1718817032923,-1500.0,0.00024109,30]
[329906124,1718817032932,-519.0,0.000242,2]
[329906125,1718817032945,-519.0,0.000242,2]
[329906126,1718817032954,-1000.0,0.000242,2]
[329906127,1718817032963,-1500.0,0.00024246,30]
[329906128,1718817032973,-926.99640605,0.00024296,2]
[329906129,1718817032982,-287.65752128,0.00024296,2]
[329906130,1718817032992,-161.27053556,0.00024296,2]
[329906131,1718817033001,-762.62906153,0.00024296,2]
[329906132,1718817033011,-1500.0,0.00024383,30]
[329906133,1718817033020,-603.15558218,0.00024434,7]
[329906134,1718817033029,-1500.0,0.0002452,30]
[329906135,1718817033039,-620.13086055,0.00024521,2]
[329906136,1718817033048,-2000.0,0.00024549,2]
[329906137,1718817033057,-3422.66036898,0.00024557,2]
[329906138,1718817033067,-262.32071986,0.00024586,2]
[329906139,1718817033076,-240.69123659,0.00024647,2]
[329906140,1718817033085,-10244.93987039,0.00024649,2]
[329906141,1718817033095,-157.87577542,0.00024649,2]
[329906142,1718817033105,-151.0,0.00024649,2]
[329906143,1718817033115,-276.57912755,0.0002465,2]
[329906144,1718817033124,-927.89421076,0.0002465,2]
[329906145,1718817033134,-946.56236145,0.0002465,2]
[329906146,1718817033143,-898.61359266,0.00024653,2]
[329906147,1718817033153,-233.23281872,0.00024653,2]
[329906148,1718817033163,-304.95921375,0.00024653,2]
[329906149,1718817033174,-208.44060516,0.00024653,2]
[329906150,1718817033185,-159.0961961,0.00024653,2]
[329906151,1718817033196,-159.62941992,0.00024653,2]
[329906152,1718817033205,-737.76200684,0.00024653,2]
[329906153,1718817033216,-156.9902577,0.00024653,2]
[329906154,1718817033226,-205.51810314,0.00024654,2]
[329906155,1718817033236,-500.0,0.00024657,5]
[329906156,1718817033246,-500.0,0.00024657,5]
[329906157,1718817033256,-504.58548721,0.00024657,5]
[329906158,1718817033266,-500.0,0.00024657,5]
[329906159,1718817033276,-500.0,0.00024657,5]
[329906160,1718817033286,-500.0,0.00024657,5]
[329906161,1718817033295,-500.0,0.00024657,5]
[329906162,1718817033305,-527.23325413,0.00024657,5]
[329906163,1718817033315,-500.0,0.00024657,5]
[329906164,1718817033325,-500.0,0.00024657,5]
[329906165,1718817033334,-500.0,0.00024657,5]
[329906166,1718817033344,-314.64604994,0.00024657,5]
[329906167,1718817033354,-500.0,0.00024657,5]
[329906168,1718817033363,-501.78038658,0.00024657,5]
[329906169,1718817033373,-500.0,0.00024657,5]
[329906170,1718817033383,-468.19430307,0.00024657,5]
[329906171,1718817033392,-500.0,0.00024657,5]
[329906172,1718817033402,-500.0,0.00024657,5]
[329906173,1718817033413,-189.28216555,0.00024657,5]
[329906174,1718817033424,-500.0,0.00024657,5]
[329906175,1718817033435,-536.49849498,0.00024657,5]
[329906176,1718817033446,-500.0,0.00024657,5]
[329906177,1718817033556,-500.0,0.00024657,5]
[329906178,1718817033572,-500.0,0.00024657,5]
[329906179,1718817033582,-500.0,0.00024657,5]
[329906180,1718817033591,-502.03797108,0.00024657,5]
[329906181,1718817033600,-500.0,0.00024657,5]
[329906182,1718817033611,-500.0,0.00024657,5]
[329906183,1718817033621,-500.0,0.00024657,5]
[329906184,1718817033630,-513.56431303,0.00024657,5]
[329906185,1718817033641,-500.0,0.00024657,5]
[329906186,1718817033653,-501.71349734,0.00024657,5]
[329906187,1718817033663,-602.65210459,0.00024657,5]
[329906188,1718817033673,-500.0,0.00024657,5]